bitfinex/quotes_SOLUSD_20241214
["timestamp","ask_amount","ask_price","bid_price","bid_amount"]
[1734171167594,6.6555,225.38,225.28,23.776884]
[1734171167595,20.0,225.39,225.3,32.00998567]
[1734171167761,8.23310167,225.37,225.31,23.776884]
[1734171167963,8.23310167,225.36,225.28,23.776884]
[1734171168178,8.23310167,225.36,225.3,23.776884]
[1734171168479,20.0,225.39,225.3,23.776884]
[1734171168682,8.23310167,225.37,225.31,23.776884]
[1734171168890,8.23310167,225.39,225.33,8.23310167]
[1734171169067,8.23310167,225.39,225.34,23.776884]
[1734171170081,8.23310167,225.39,225.33,23.776884]
[1734171170279,6.6542,225.42,225.33,23.776884]
[1734171170496,8.23310167,225.36,225.33,23.776884]
[1734171171568,8.23310167,225.36,225.31,0.12549]
[1734171172796,8.23310167,225.37,225.31,0.12549]
[1734171173490,8.23310167,225.38,225.31,8.35859167]
[1734171173687,6.6542,225.42,225.33,23.776884]
[1734171173688,8.23310167,225.39,225.33,23.776884]
[1734171174093,8.23310167,225.38,225.33,23.776884]
[1734171174608,8.23310167,225.38,225.32,23.776884]
[1734171180006,20.0,225.35,225.26,7.9593]
[1734171180195,8.23310167,225.33,225.26,7.9593]
[1734171180375,8.23310167,225.33,225.26,16.19240167]
[1734171180779,8.23310167,225.34,225.27,8.35859167]
[1734171181785,8.23310167,225.34,225.28,23.776884]
[1734171183491,8.23310167,225.29,225.19,1.5429]
[1734171183803,8.23310167,225.27,225.21,8.23310167]
[1734171183980,20.0,225.34,225.23,8.23310167]
[1734171184183,8.23310167,225.3,225.23,8.23310167]
[1734171184384,8.23310167,225.3,225.24,8.23310167]
[1734171186907,20.0,225.34,225.26,8.23310167]
[1734171187204,8.23310167,225.34,225.27,32.00998567]
[1734171187710,1.559,225.36,225.28,8.23310167]
[1734171187902,8.23310167,225.36,225.29,8.23310167]
[1734171188209,6.6556,225.38,225.29,8.23310167]
[1734171188394,8.23310167,225.36,225.29,8.23310167]
[1734171191617,6.6556,225.38,225.27,23.776884]
[1734171191805,8.23310167,225.36,225.29,8.23310167]
[1734171193896,8.23310167,225.36,225.28,8.23310167]
[1734171194393,8.23310167,225.35,225.28,8.23310167]
[1734171194599,8.23310167,225.34,225.28,8.23310167]
[1734171196908,8.23310167,225.34,225.27,32.00998567]
[1734171197211,8.23310167,225.33,225.27,23.776884]
[1734171197419,8.23310167,225.31,225.25,23.776884]
[1734171199500,8.23310167,225.3,225.24,23.902374]
[1734171200225,8.23310167,225.27,225.22,23.776884]
[1734171202518,8.23310167,225.27,225.19,1.5429]
[1734171202695,8.23310167,225.27,225.2,32.00998567]
[1734171202901,8.23310167,225.27,225.21,0.12549]
[1734171204312,8.23310167,225.24,225.19,1.5429]
[1734171204619,8.23310167,225.22,225.15,8.23310167]
[1734171204825,8.23310167,225.21,225.14,1.519]
[1734171205119,8.23310167,225.19,225.14,1.519]
[1734171206116,8.23310167,225.19,225.15,23.776884]
[1734171208711,8.23310167,225.21,225.15,23.776884]
[1734171209609,20.0,225.25,225.15,23.776884]
[1734171209815,8.23310167,225.21,225.15,23.776884]
[1734171212534,8.23310167,225.25,225.19,23.776884]
[1734171212716,8.23310167,225.26,225.19,32.00998567]
[1734171214230,6.6575,225.31,225.2,8.48408167]
[1734171214534,8.23310167,225.29,225.22,8.23310167]
[1734171215543,8.23310167,225.28,225.21,8.23310167]
[1734171215842,8.23310167,225.28,225.22,23.776884]
[1734171216041,8.23310167,225.28,225.21,23.902374]
[1734171216227,8.23310167,225.28,225.21,32.13547567]
[1734171217318,8.23310167,225.28,225.22,8.23310167]
[1734171218227,8.23310167,225.28,225.21,32.13547567]
[1734171219347,8.23310167,225.28,225.21,23.902374]
[1734171219547,8.23310167,225.28,225.21,32.13547567]
[1734171223624,6.6575,225.31,225.22,23.776884]
[1734171224067,8.23310167,225.27,225.22,23.776884]
[1734171224971,8.23310167,225.28,225.22,23.776884]
[1734171226045,8.23310167,225.29,225.22,33.59688567]
[1734171226243,20.0,225.32,225.23,0.12549]
[1734171226437,8.23310167,225.3,225.24,23.776884]
[1734171227160,8.23310167,225.29,225.23,24.027864]
[1734171228253,6.6565,225.35,225.23,24.027864]
[1734171228458,8.23310167,225.3,225.23,32.26096567]
[1734171228664,6.6565,225.35,225.24,8.23310167]
[1734171228845,6.6565,225.35,225.25,8.23310167]
[1734171229041,6.6565,225.35,225.24,8.23310167]
[1734171229042,8.23310167,225.31,225.24,8.23310167]
[1734171229350,8.23310167,225.29,225.23,24.027864]
[1734171231575,8.23310167,225.3,225.23,24.027864]
[1734171232695,8.23310167,225.3,225.23,23.902374]
[1734171236777,8.23310167,225.25,225.22,1.5869]
[1734171237095,8.23310167,225.25,225.18,8.35859167]
[1734171237460,20.0,225.31,225.18,8.35859167]
[1734171237669,8.23310167,225.25,225.18,8.35859167]
[1734171238074,8.23310167,225.25,225.19,23.776884]
[1734171240165,26.6576,225.31,225.19,32.00998567]
[1734171240366,8.23310167,225.25,225.18,32.13547567]
[1734171240590,8.23310167,225.26,225.2,23.776884]
[1734171241989,8.23310167,225.25,225.2,23.776884]
[1734171242170,8.23310167,225.25,225.19,23.776884]
[1734171244376,8.23310167,225.26,225.19,32.00998567]
[1734171244687,26.6576,225.31,225.21,23.776884]
[1734171244688,8.23310167,225.27,225.21,23.776884]
[1734171247779,8.23310167,225.27,225.2,9.02449711]
[1734171249598,8.23310167,225.27,225.2,0.79139544]
[1734171250541,26.6576,225.31,225.2,0.25098]
[1734171250542,8.23310167,225.26,225.2,0.25098]
[1734171251177,8.23310167,225.25,225.19,0.25098]
[1734171252196,8.23310167,225.23,225.17,1.6213]
[1734171252619,8.23310167,225.23,225.18,0.12549]
[1734171254897,8.23310167,225.24,225.18,0.12549]
[1734171256315,8.23310167,225.25,225.18,8.48408167]
[1734171256522,8.23310167,225.27,225.21,8.48408167]
[1734171256807,20.0,225.31,225.21,8.48408167]
[1734171256808,8.23310167,225.26,225.21,0.25098]
[1734171257979,8.23310167,225.25,225.21,0.25098]
[1734171261201,20.0,225.31,225.21,0.25098]
[1734171261401,8.23310167,225.26,225.21,0.25098]
[1734171264517,8.23310167,225.26,225.18,0.66589082]
[1734171264728,8.23310167,225.25,225.18,0.66589082]
[1734171264946,20.0,225.29,225.19,0.25098]
[1734171265236,8.23310167,225.25,225.19,0.25098]
[1734171266243,8.23310167,225.24,225.18,24.027864]
[1734171266611,20.0,225.29,225.18,0.25098]
[1734171266924,20.0,225.31,225.18,8.48408167]
[1734171266925,8.23310167,225.25,225.18,8.48408167]
[1734171269415,6.6577,225.3,225.18,8.48408167]
[1734171269717,8.23310167,225.25,225.18,8.48408167]
[1734171270039,8.23310167,225.26,225.2,0.12549]
[1734171271040,6.6577,225.3,225.2,0.12549]
[1734171271248,8.23310167,225.26,225.2,0.12549]
[1734171273245,8.23310167,225.26,225.18,0.25098]
[1734171273410,8.23310167,225.26,225.2,0.12549]
[1734171275211,8.23310167,225.23,225.18,0.25098]
[1734171275437,8.23310167,225.24,225.18,0.25098]
[1734171276918,8.23310167,225.25,225.18,8.48408167]
[1734171277129,8.23310167,225.24,225.18,0.25098]
[1734171278547,8.23310167,225.25,225.18,8.48408167]
[1734171278847,8.23310167,225.25,225.18,0.25098]
[1734171279040,8.23310167,225.25,225.18,8.48408167]
[1734171279827,8.23310167,225.26,225.18,8.48408167]
[1734171281028,8.23310167,225.26,225.2,0.25098]
[1734171287956,8.23310167,225.26,225.19,8.23310167]
[1734171287957,8.23310167,225.24,225.19,0.25098]
[1734171288458,8.23310167,225.25,225.19,0.25098]
[1734171291070,8.23310167,225.24,225.17,1.6213]
[1734171291356,8.23310167,225.24,225.18,0.12549]
[1734171291557,8.23310167,225.23,225.18,0.12549]
[1734171291757,6.6577,225.3,225.18,0.12549]
[1734171291960,8.23310167,225.24,225.18,0.12549]
[1734171292848,20.0,225.31,225.21,0.12549]
[1734171293058,8.23310167,225.27,225.21,0.12549]
[1734171295136,6.6568,225.34,225.25,0.12549]
[1734171295339,8.23310167,225.32,225.25,8.35859167]
[1734171295764,8.23310167,225.31,225.25,8.35859167]
[1734171300346,8.23310167,225.31,225.25,0.12549]
[1734171300743,8.23310167,225.29,225.25,0.12549]
[1734171300970,8.23310167,225.28,225.22,8.23310167]
[1734171301669,8.23310167,225.28,225.23,0.25098]
[1734171302976,8.23310167,225.28,225.21,44.027864]
[1734171303273,8.23310167,225.26,225.21,0.12549]
[1734171303455,8.23310167,225.26,225.2,0.25098]
[1734171303966,8.23310167,225.25,225.2,0.25098]
[1734171304152,8.23310167,225.25,225.19,8.23310167]
[1734171304350,8.23310167,225.25,225.2,0.25098]
[1734171305152,8.23310167,225.24,225.18,0.25098]
[1734171305476,8.23310167,225.24,225.18,0.12549]
[1734171306044,8.23310167,225.25,225.18,8.48408167]
[1734171307655,8.23310167,225.25,225.19,8.23310167]
[1734171307977,8.23310167,225.26,225.2,0.12549]
[1734171308168,8.23310167,225.25,225.2,0.12549]
[1734171308477,8.23310167,225.25,225.19,0.12549]
[1734171309866,8.23310167,225.28,225.22,0.25098]
[1734171310176,8.23310167,225.3,225.24,8.48408167]
[1734171313046,8.23310167,225.3,225.24,0.25098]
[1734171313573,8.23310167,225.3,225.24,0.12549]
[1734171313776,8.23310167,225.29,225.22,8.89890072]
[1734171314179,8.23310167,225.29,225.23,0.25098]
[1734171315879,8.23310167,225.29,225.25,0.12549]
[1734171320184,8.23310167,225.29,225.25,0.25098]
[1734171321766,8.23310167,225.3,225.25,0.25098]
[1734171322172,6.6549,225.4,225.3,0.12549]
[1734171322402,8.23310167,225.37,225.3,8.35859167]
[1734171322597,8.23310167,225.38,225.32,0.12549]
[1734171326086,8.23310167,225.4,225.33,8.48408167]
[1734171326279,8.23310167,225.41,225.35,0.25098]
[1734171327059,6.6526,225.48,225.35,0.25098]
[1734171327060,8.23310167,225.43,225.37,0.12549]
[1734171327262,8.23310167,225.43,225.38,0.12549]
[1734171327877,8.23310167,225.43,225.38,0.25098]
[1734171328276,32.93240668,225.5,225.38,1.80768]
[1734171328474,8.23310167,225.45,225.38,10.04078167]
[1734171330491,8.23310167,225.43,225.38,1.80768]
[1734171330692,8.23310167,225.43,225.39,23.776884]
[1734171331185,8.23310167,225.43,225.4,0.12549]
[1734171336478,8.23310167,225.44,225.4,0.12549]
[1734171338089,20.0,225.49,225.4,0.12549]
[1734171338299,8.23310167,225.44,225.4,0.12549]
[1734171340710,8.23310167,225.43,225.4,0.12549]
[1734171342003,8.23310167,225.42,225.4,0.12549]
[1734171344310,8.23310167,225.43,225.4,0.12549]
[1734171347289,20.0,225.49,225.4,0.12549]
[1734171347290,8.23310167,225.44,225.4,0.12549]
[1734171348087,8.23310167,225.45,225.4,0.12549]
[1734171349714,20.0,225.49,225.4,0.12549]
[1734171349915,8.23310167,225.46,225.4,0.12549]
[1734171350585,20.0,225.49,225.4,0.12549]
[1734171350805,8.23310167,225.46,225.4,0.12549]
[1734171354482,20.0,225.49,225.4,0.12549]
[1734171354483,20.0,225.49,225.4,8.35859167]
[1734171354687,8.23310167,225.47,225.42,0.12549]
[1734171354914,20.0,225.49,225.42,0.12549]
[1734171354915,8.23310167,225.46,225.42,0.12549]
[1734171355638,8.23310167,225.47,225.41,0.12549]
[1734171355915,8.23310167,225.48,225.41,8.35859167]
[1734171356495,8.23310167,225.47,225.41,23.902374]
[1734171357496,8.23310167,225.48,225.41,32.13547567]
[1734171357888,8.23310167,225.47,225.41,32.13547567]
[1734171358518,20.0,225.49,225.43,0.12549]
[1734171358707,20.0,225.49,225.43,32.13547567]
[1734171360026,6.6502,225.56,225.46,0.12549]
[1734171360198,8.23310167,225.52,225.46,0.12549]
[1734171360401,8.23310167,225.51,225.46,23.902374]
[1734171360917,8.23310167,225.51,225.45,23.902374]
[1734171361127,8.23310167,225.5,225.45,0.12549]
[1734171361288,8.23310167,225.49,225.43,23.776884]
[1734171361494,8.23310167,225.49,225.44,0.12549]
[1734171366798,8.23310167,225.5,225.44,0.12549]
[1734171367007,2.71108826,225.59,225.44,0.12549]
[1734171367008,8.23310167,225.49,225.44,0.12549]
[1734171367217,8.23310167,225.47,225.44,0.12549]
[1734171367608,8.23310167,225.48,225.42,23.776884]
[1734171368199,8.23310167,225.48,225.43,0.12549]
[1734171369214,8.23310167,225.49,225.43,0.12549]
[1734171369421,8.23310167,225.48,225.43,0.12549]
[1734171371309,6.6509,225.54,225.39,23.902374]
[1734171371310,8.23310167,225.47,225.39,23.902374]
[1734171371621,8.23310167,225.47,225.4,0.12549]
[1734171373212,8.23310167,225.47,225.4,8.35859167]
[1734171373699,8.23310167,225.47,225.42,0.12549]
[1734171375122,6.6509,225.54,225.42,0.12549]
[1734171375419,6.6509,225.54,225.44,32.13547567]
[1734171375420,28.23310167,225.51,225.44,32.13547567]
[1734171376329,8.23310167,225.51,225.44,32.13547567]
[1734171376709,8.23310167,225.5,225.42,24.027864]
[1734171376915,8.23310167,225.48,225.42,23.902374]
[1734171377121,8.23310167,225.46,225.42,0.12549]
[1734171377323,8.23310167,225.46,225.41,0.12549]
[1734171378149,8.23310167,225.46,225.4,0.12549]
[1734171378828,8.23310167,225.46,225.4,23.902374]
[1734171379339,20.0,225.49,225.4,23.902374]
[1734171379632,8.23310167,225.46,225.4,23.902374]
[1734171383227,20.0,225.49,225.4,32.13547567]
[1734171383417,8.23310167,225.46,225.4,32.13547567]
[1734171383618,8.23310167,225.47,225.4,32.13547567]
[1734171384928,8.23310167,225.47,225.42,0.12549]
[1734171386211,8.23310167,225.47,225.4,8.35859167]
[1734171386618,8.23310167,225.47,225.42,0.12549]
[1734171387924,6.6501,225.56,225.42,8.35859167]
[1734171388110,8.23310167,225.51,225.44,8.35859167]
[1734171391243,20.0,225.53,225.44,8.35859167]
[1734171391445,8.23310167,225.52,225.45,33.56078567]
[1734171391737,20.0,225.53,225.46,0.12549]
[1734171391925,8.23310167,225.52,225.46,0.12549]
[1734171392823,6.6501,225.56,225.48,0.12549]
[1734171393049,8.23310167,225.53,225.48,0.12549]
[1734171393627,8.23310167,225.52,225.48,0.12549]
[1734171393827,8.23310167,225.53,225.48,0.12549]
[1734171398125,8.23310167,225.52,225.46,23.776884]
[1734171398323,8.23310167,225.51,225.46,23.776884]
[1734171398538,8.23310167,225.51,225.47,0.12549]
[1734171399433,8.23310167,225.5,225.45,1.5508]
[1734171401126,8.23310167,225.5,225.46,0.12549]
[1734171401644,6.6501,225.56,225.46,23.902374]
[1734171401869,8.23310167,225.51,225.46,23.902374]
[1734171404545,8.23310167,225.5,225.46,23.902374]
[1734171405242,6.6501,225.56,225.46,23.902374]
[1734171405448,8.23310167,225.51,225.46,23.902374]
[1734171406521,8.23310167,225.52,225.46,23.902374]
[1734171410654,8.23310167,225.51,225.46,23.902374]
[1734171413438,8.23310167,225.5,225.46,23.902374]
[1734171413946,8.23310167,225.51,225.46,23.902374]
[1734171415153,6.6501,225.56,225.46,23.902374]
[1734171415337,8.23310167,225.51,225.46,23.902374]
[1734171418054,8.23310167,225.47,225.4,1.6325]
[1734171418258,8.23310167,225.46,225.4,1.6325]
[1734171418557,8.23310167,225.44,225.4,1.6325]
[1734171418928,8.23310167,225.45,225.41,0.12549]
[1734171419950,8.23310167,225.44,225.41,0.12549]
[1734171426166,8.23310167,225.43,225.39,0.12549]
[1734171428169,8.23310167,225.43,225.37,23.776884]
[1734171428353,8.23310167,225.42,225.37,23.776884]
[1734171429244,8.23310167,225.43,225.38,0.12549]
[1734171429753,8.23310167,225.39,225.36,1.6621]
[1734171430469,8.23310167,225.39,225.33,0.12549]
[1734171430963,8.23310167,225.39,225.33,23.776884]
[1734171431268,8.23310167,225.38,225.34,0.12549]
[1734171436070,8.23310167,225.32,225.26,1.5004]
[1734171436291,8.23310167,225.31,225.26,1.5004]
[1734171436774,32.93240668,225.39,225.26,1.5004]
[1734171436775,8.23310167,225.3,225.26,1.5004]
[1734171437078,8.23310167,225.29,225.26,1.5004]
[1734171438072,8.23310167,225.29,225.22,8.23310167]
[1734171438368,8.23310167,225.29,225.23,0.12549]
[1734171438673,8.23310167,225.28,225.23,0.12549]
[1734171438856,8.23310167,225.28,225.21,9.73350167]
[1734171439063,8.23310167,225.27,225.22,0.12549]
[1734171440474,8.23310167,225.28,225.22,23.902374]
[1734171441950,6.6561,225.36,225.21,1.5004]
[1734171441951,8.23310167,225.26,225.21,1.5004]
[1734171442149,6.657,225.33,225.21,1.5004]
[1734171442464,8.23310167,225.24,225.21,1.5004]
[1734171442647,8.23310167,225.22,225.16,1.5004]
[1734171442851,8.23310167,225.19,225.16,1.5004]
[1734171443050,8.23310167,225.2,225.16,1.5004]
[1734171443279,8.23310167,225.19,225.16,1.5004]
[1734171443647,8.23310167,225.19,225.12,8.76922427]
[1734171443648,8.23310167,225.18,225.12,0.5361226]
[1734171443855,8.23310167,225.17,225.12,0.5361226]
[1734171444163,6.6594,225.25,225.12,0.5361226]
[1734171444164,8.23310167,225.16,225.12,0.5361226]
[1734171444979,6.6594,225.25,225.12,0.5361226]
[1734171445168,8.23310167,225.14,225.12,0.5361226]
[1734171447187,8.23310167,225.15,225.12,0.5361226]
[1734171447389,1.5012,225.23,225.13,0.12549]
[1734171447558,8.23310167,225.17,225.13,0.12549]
[1734171451275,8.23310167,225.18,225.13,0.12549]
[1734171451604,8.23310167,225.2,225.13,32.13547567]
[1734171451888,8.23310167,225.2,225.15,0.12549]
[1734171452292,8.23310167,225.21,225.15,0.12549]
[1734171453293,8.23310167,225.21,225.15,23.902374]
[1734171453602,8.23310167,225.19,225.15,0.12549]
[1734171454313,8.23310167,225.16,225.12,0.5361226]
[1734171454976,20.0,225.23,225.15,0.12549]
[1734171455170,6.659,225.26,225.15,0.12549]
[1734171455171,8.23310167,225.21,225.15,0.12549]
[1734171455375,8.23310167,225.2,225.15,0.12549]
[1734171456780,8.23310167,225.19,225.13,23.902374]
[1734171456989,8.23310167,225.18,225.13,23.902374]
[1734171460304,8.23310167,225.14,225.12,0.5361226]
[1734171460990,8.23310167,225.15,225.12,0.5361226]
[1734171461198,8.23310167,225.16,225.12,0.5361226]
[1734171461396,20.0,225.2,225.12,0.5361226]
[1734171461586,8.23310167,225.16,225.12,0.5361226]
[1734171461782,8.23310167,225.15,225.12,0.5361226]
[1734171462001,20.0,225.2,225.12,0.5361226]
[1734171462206,8.23310167,225.16,225.12,0.5361226]
[1734171465215,6.6599,225.23,225.13,23.902374]
[1734171465523,8.23310167,225.2,225.13,32.13547567]
[1734171466112,8.23310167,225.19,225.13,23.902374]
[1734171466817,8.23310167,225.2,225.13,32.13547567]
[1734171467016,8.23310167,225.21,225.15,23.902374]
[1734171467221,8.23310167,225.2,225.15,23.902374]
[1734171467710,8.23310167,225.2,225.15,0.12549]
[1734171468408,8.23310167,225.21,225.15,0.12549]
[1734171468599,8.23310167,225.21,225.15,23.902374]
[1734171468913,20.0,225.24,225.15,32.13547567]
[1734171469117,8.23310167,225.22,225.15,32.13547567]
[1734171469323,6.6586,225.27,225.15,23.776884]
[1734171469324,8.23310167,225.17,225.15,23.776884]
[1734171469510,8.23310167,225.17,225.13,23.776884]
[1734171469818,11.6586,225.27,225.17,23.776884]
[1734171469819,6.6586,225.27,225.17,23.776884]
[1734171470030,8.23310167,225.23,225.17,23.776884]
[1734171470335,8.23310167,225.23,225.18,1.91038]
[1734171470636,8.23310167,225.26,225.2,0.12549]
[1734171470796,8.23310167,225.25,225.2,0.12549]
[1734171473707,20.0,225.28,225.2,0.12549]
[1734171473907,28.23310167,225.28,225.21,23.776884]
[1734171474130,8.23310167,225.27,225.21,23.776884]
[1734171475531,8.23310167,225.28,225.22,0.12549]
[1734171475827,8.23310167,225.29,225.22,8.35859167]
[1734171476021,8.23310167,225.3,225.24,23.902374]
[1734171477117,8.23310167,225.28,225.23,0.12549]
[1734171477426,14.7763,225.35,225.21,32.00998567]
[1734171477427,8.23310167,225.26,225.21,23.776884]
[1734171477610,8.23310167,225.26,225.22,0.12549]
[1734171477814,8.23310167,225.25,225.21,23.776884]
[1734171479429,8.23310167,225.26,225.21,23.776884]
[1734171480715,6.6574,225.32,225.2,6.0474]
[1734171480716,8.23310167,225.25,225.2,23.776884]
[1734171480934,8.23310167,225.24,225.19,23.776884]
[1734171481246,6.6582,225.29,225.19,23.776884]
[1734171481530,8.23310167,225.24,225.19,23.776884]
[1734171482611,8.23310167,225.25,225.19,23.776884]
[1734171483220,8.23310167,225.27,225.2,8.23310167]
[1734171483420,8.23310167,225.27,225.21,23.776884]
[1734171484233,8.23310167,225.28,225.21,32.00998567]
[1734171484418,8.23310167,225.28,225.21,8.23310167]
[1734171485222,8.23310167,225.27,225.2,8.35859167]
[1734171485425,8.23310167,225.27,225.21,23.776884]
[1734171485735,8.23310167,225.28,225.21,32.00998567]
[1734171489031,8.23310167,225.29,225.23,23.776884]
[1734171489223,8.23310167,225.3,225.23,32.00998567]
[1734171489422,8.23310167,225.31,225.23,32.00998567]
[1734171490726,8.23310167,225.24,225.18,1.6594]
[1734171491517,8.23310167,225.25,225.18,1.6594]
[1734171492113,8.23310167,225.25,225.19,23.776884]
[1734171492725,8.23310167,225.24,225.19,23.776884]
[1734171492927,8.23310167,225.23,225.18,1.6594]
[1734171493534,8.23310167,225.23,225.19,0.12549]
[1734171496138,8.23310167,225.2,225.13,1.6594]
[1734171496422,8.23310167,225.17,225.13,1.6594]
[1734171496830,8.23310167,225.17,225.12,0.5361226]
[1734171497126,8.23310167,225.16,225.12,0.5361226]
[1734171497625,8.23310167,225.17,225.12,0.5361226]
[1734171498443,6.6605,225.21,225.12,0.5361226]
[1734171498444,8.23310167,225.18,225.12,0.5361226]
[1734171498640,8.23310167,225.18,225.13,0.12549]
[1734171498851,8.23310167,225.19,225.13,0.12549]
[1734171499549,8.23310167,225.18,225.13,0.12549]
[1734171501927,8.23310167,225.17,225.13,0.12549]
[1734171502456,6.6605,225.21,225.12,0.5361226]
[1734171502457,8.23310167,225.16,225.12,0.5361226]
[1734171503229,8.23310167,225.15,225.12,0.5361226]
[1734171504454,8.23310167,225.14,225.12,0.5361226]
[1734171505809,8.23310167,225.13,225.12,0.5361226]
[1734171506131,8.23310167,225.13,225.12,2.26e-05]
[1734171507062,1.5467,225.14,225.12,2.26e-05]
[1734171507063,21.5467,225.14,225.12,2.26e-05]
[1734171507368,8.23310167,225.13,225.12,2.26e-05]
[1734171515961,8.23310167,225.13,224.96,2.32585653]
[1734171515962,20.0,225.09,224.96,8.23310167]
[1734171516168,8.23310167,225.05,224.96,8.23310167]
[1734171517203,8.23310167,225.05,224.94,6.2743]
[1734171517366,8.23310167,225.05,224.96,8.23310167]
[1734171517774,20.0,225.08,224.99,8.23310167]
[1734171518008,28.23310167,225.08,224.99,8.23310167]
[1734171519289,8.23310167,225.03,224.98,24.027864]
[1734171519496,8.23310167,225.05,224.97,23.776884]
[1734171519697,8.23310167,225.05,224.97,8.23310167]
[1734171519989,8.23310167,225.05,224.98,8.23310167]
[1734171520200,8.23310167,225.07,224.98,8.23310167]
[1734171520371,20.0,225.08,225.0,8.23310167]
[1734171520571,28.23310167,225.08,225.0,8.23310167]
[1734171521170,28.23310167,225.08,225.01,23.902374]
[1734171521371,6.6623,225.15,225.03,32.26096567]
[1734171521565,8.23310167,225.11,225.04,8.23310167]
[1734171522166,8.23310167,225.12,225.05,8.23310167]
[1734171522771,8.23310167,225.12,225.04,8.23310167]
[1734171523193,8.23310167,225.11,225.04,8.23310167]
[1734171524209,8.23310167,225.12,225.04,8.23310167]
[1734171524980,8.23310167,225.12,225.05,32.00998567]
[1734171525181,8.23310167,225.11,225.04,8.35859167]
[1734171525711,8.23310167,225.11,225.05,23.776884]
[1734171526412,8.23310167,225.12,225.05,8.23310167]
[1734171526710,8.23310167,225.11,225.04,32.13547567]
[1734171528625,8.23310167,225.12,225.05,8.23310167]
[1734171530717,8.23310167,225.11,225.04,32.13547567]
[1734171531417,8.23310167,225.11,225.04,23.902374]
[1734171531605,8.23310167,225.08,225.03,6.2743]
[1734171531780,8.23310167,225.06,225.02,1.6267]
[1734171532176,8.23310167,225.05,225.02,1.6267]
[1734171532989,8.23310167,225.05,224.97,16.67765225]
[1734171533223,8.23310167,225.05,224.97,16.01120167]
[1734171533601,8.23310167,225.05,224.98,0.12549]
[1734171534101,8.23310167,225.05,224.97,16.01120167]
[1734171534606,8.23310167,225.05,224.98,23.776884]
[1734171535007,8.23310167,225.03,224.97,7.7781]
[1734171535190,8.23310167,225.04,224.98,0.12549]
[1734171536091,8.23310167,225.04,224.98,23.902374]
[1734171537493,8.23310167,225.05,224.98,32.13547567]
[1734171537695,8.23310167,225.04,224.97,7.7781]
[1734171537895,8.23310167,225.04,224.97,16.01120167]
[1734171539087,8.23310167,225.04,224.97,7.7781]
[1734171539290,8.23310167,225.04,224.97,16.01120167]
[1734171539999,8.23310167,225.05,224.98,8.23310167]
[1734171540202,8.23310167,225.05,224.97,7.7781]
[1734171540399,8.23310167,225.04,224.97,16.01120167]
[1734171540824,8.23310167,225.05,224.98,8.23310167]
[1734171541403,8.23310167,225.04,224.97,7.7781]
[1734171541610,8.23310167,225.04,224.97,16.01120167]
[1734171541910,8.23310167,225.05,224.98,8.23310167]
[1734171542812,8.23310167,225.08,225.0,8.23310167]
[1734171543489,8.23310167,225.08,225.01,8.23310167]
[1734171543689,8.23310167,225.09,225.02,8.23310167]
[1734171544319,6.6622,225.15,225.02,8.23310167]
[1734171544512,8.23310167,225.09,225.02,8.23310167]
[1734171545099,8.23310167,225.08,225.02,8.23310167]
[1734171545512,20.0,225.12,225.01,23.902374]
[1734171545857,8.23310167,225.08,225.01,32.13547567]
[1734171546320,8.23310167,225.09,225.02,8.23310167]
[1734171546529,6.6622,225.15,225.03,32.00998567]
[1734171546819,8.23310167,225.1,225.03,8.23310167]
[1734171547928,8.23310167,225.1,225.04,23.902374]
[1734171548100,8.23310167,225.1,225.04,24.172374]
[1734171548302,8.23310167,225.11,225.04,8.62859167]
[1734171550131,8.23310167,225.11,225.06,0.12549]
[1734171550515,8.23310167,225.12,225.06,0.12549]
[1734171550828,6.6611,225.19,225.06,0.12549]
[1734171551024,20.0,225.16,225.08,23.902374]
[1734171551225,7.733,225.23,225.09,8.23310167]
[1734171551439,8.23310167,225.16,225.09,8.23310167]
[1734171551613,8.23310167,225.16,225.1,23.902374]
[1734171552014,8.23310167,225.17,225.1,32.13547567]
[1734171552218,6.66,225.23,225.12,32.00998567]
[1734171552439,8.23310167,225.18,225.12,8.23310167]
[1734171552830,8.23310167,225.18,225.11,8.35859167]
[1734171553025,8.23310167,225.18,225.12,23.776884]
[1734171553220,8.23310167,225.17,225.12,23.776884]
[1734171553444,6.6586,225.27,225.12,32.00998567]
[1734171553744,8.23310167,225.18,225.12,32.00998567]
[1734171555325,8.23310167,225.18,225.12,23.776884]
[1734171556020,8.23310167,225.16,225.07,23.902374]
[1734171556338,8.23310167,225.15,225.08,8.48408167]
[1734171556637,8.23310167,225.14,225.09,23.776884]